Cogmind - Beta 9.3 @@@ ROGUE MODE // 2020.01.01 @ 23:46:16 // Winter2019/RPGLIKE Player: FontPeg Result: Destroyed by S-10 Pest with Light Assault Rifle Performance ------------- Evolutions (2) 1000 Regions Visited (3) 600 Robots Destroyed (48) 240 Value Destroyed (1093) 1093 Prototype IDs (2) 40 Alien Tech Used (0) 0 Bonus (89) 89 TOTAL SCORE: 3062 Bonus ------- High Alert Combat Kills 89 Cogmind --------- Core Integrity 0/1000 Matter 5/300 Energy 640/640 System Corruption 0% Temperature Cool (120) Movement Walking (120) Location -8/Materials Parts ------- > --- POWER (2) -------- Nuclear Core > --- PROPULSION (3) --- Aluminum Leg Carbon-fiber Leg Flight Unit > --- UTILITY (3) ------ Large Battery Improved Sensor Array Advanced Targeting Computer > --- WEAPON (2) ------- Assault Cannon Rocket Launcher > --- INVENTORY (2) ---- Improved EM Shotgun Mace Peak State ------------ > --- POWER ------------ Nuclear Core > --- PROPULSION ------- Aluminum Leg Carbon-fiber Leg Flight Unit > --- UTILITY ---------- Large Battery Improved Sensor Array Advanced Targeting Computer > --- WEAPON ----------- Assault Cannon Rocket Launcher > --- INVENTORY -------- Improved EM Shotgun Mace [Rating: 19] Favorites ----------- Power Light Ion Engine Engine Light Ion Engine Power Core Nuclear Core Propulsion Hover Unit Treads Light Treads Leg Carbon-fiber Leg Wheel Compact Wheel Hover Unit Hover Unit Flight Unit Flight Unit Utility Improved Sensor Array Device Improved Sensor Array Storage Large Battery Processor Visual Processing Unit Protection Propulsion Shielding Weapon Medium Laser Energy Gun Medium Laser Ballistic Gun Light Assault Rifle Ballistic Cannon Light Cannon Launcher Rocket Launcher Impact Weapon Mace Build | -11 -10 -9 -8 ------- Run | Scr Mat Mat Mat Slots Evolved 6 | 3 . 1 2 Power 1 | . . . 1 Propulsion 2 | 2 . . . Utility 2 | . . 1 1 Weapon 1 | 1 . . . Parts Attached 40 | 5 6 19 10 Power 5 | 1 . 3 1 Engine 4 | 1 . 3 . Core 1 | . . . 1 Reactor . | . . . . Propulsion 16 | 2 4 7 3 Treads 1 | . 1 . . Leg 2 | . . . 2 Wheel 2 | 2 . . . Hover 6 | . 2 3 1 Flight 5 | . 1 4 . Utility 6 | . 2 2 2 Device 2 | . 1 1 . Storage 1 | . . 1 . Processor 2 | . . . 2 Hackware . | . . . . Protection 1 | . 1 . . Artifact . | . . . . Weapon 13 | 2 . 7 4 Energy Gun 4 | 2 . 2 . Energy Cannon . | . . . . Ballistic Gun 2 | . . 2 . Ballistic Cannon 3 | . . 1 2 Launcher 2 | . . . 2 Special Weapon . | . . . . Impact Weapon 2 | . . 2 . Slashing Weapon . | . . . . Piercing Weapon . | . . . . Special Melee Weapon . | . . . . Unidentified Prototypes 2 | . . 2 . Parts Lost 4 | . . 2 2 Power . | . . . . Propulsion 2 | . . . 2 Utility 1 | . . 1 . Weapon 1 | . . 1 . Highest Loss Streak 2 | . . 2 2 Average Slot Usage (%) 90 | . 97 90 82 Engine 10 | . 14 11 . Core 1 | . . . 10 Treads 1 | . 7 . . Wheel 3 | . 16 . . Hover 21 | . 11 28 7 Flight 9 | . 5 8 16 Device 10 | . 5 11 10 Storage 3 | . . 2 10 Processor 1 | . . . 7 Protection 5 | . 7 6 . Energy Gun 12 | . 28 11 . Ballistic Cannon 2 | . . 2 7 Impact Weapon 3 | . . 4 5 Naked Turns . | . . . . Heaviest Build 20 | 7 8 10 20 Greatest Support 35 | 32 32 18 35 Greatest Overweight (x) 1 | . 1 1 1 Average Overweight (x) . | . . . . Largest Inventory Capacity 2 | 1 1 2 2 Average Capacity 1 | 1 1 1 2 Most Carried 2 | 1 1 2 2 Average Carried 1 | . . 1 1 Final Capacity 2 | 1 1 2 2 Final Carried 2 | 1 1 2 2 Class Distribution -------------------- 83% | Mutant 16% | Scavenger-Mutant Dominant Class ---------------- Mutant | -10/Materials Mutant | -9/Materials Scavenger-Mutant | -8/Materials Resources | -11 -10 -9 -8 ----------- Run | Scr Mat Mat Mat Matter Collected 727 | 250 19 286 172 Remotely . | . . . . Salvage Created 910 | . 33 403 474 Parts 80 | . 6 31 43 Haulers Intercepted 2 | . . 1 1 Recyclers Shooed 1 | . . 1 . Parts Field Recycled . | . . . . Retrieved Matter . | . . . . Parts Self-Destructed . | . . . . Prevented . | . . . . Kills | -11 -10 -9 -8 ------- Run | Scr Mat Mat Mat Combat Hostiles Destroyed 32 | . 2 15 15 Melee 4 | . . 4 . Guns 10 | . 2 8 . Cannons 1 | . . . 1 AOE 15 | . . 1 14 Classes Destroyed 10 | . 3 5 2 Worker 2 | . . 1 1 Builder 6 | . . . 6 Tunneler 1 | . . . 1 Hauler 2 | . . 1 1 Operator 1 | . . 1 . Watcher 4 | . 1 2 1 Swarmer 13 | . 1 6 6 Grunt 12 | . 1 4 7 Duelist 2 | . . 1 1 Sentry 5 | . . 4 1 Best Kill Streak 19 | . 2 5 19 Combat Bots Only 11 | . 1 3 11 Max Kills in Single Turn 3 | . 1 1 3 Gunslinging . | . . . . Exploded 3 | . . 1 3 Melee 1 | . . 1 . Uniques/NPCs Destroyed . | . . . . Combat | -11 -10 -9 -8 -------- Run | Scr Mat Mat Mat Damage Taken 2446 | . 116 1533 797 Core 1928 | . 90 1192 646 Absorbed by Shields . | . . . . Redirected to Core 1403 | . 81 824 498 Core Remaining (%) 88 | 100 100 64 . Volleys Fired 85 | . 8 51 26 Largest 2 | . 2 2 2 Hottest 90 | . 90 90 77 Shots Fired 133 | . 16 73 44 Gun 85 | . 16 69 . Cannon 30 | . . 4 26 Launcher 18 | . . . 18 Special . | . . . . Kinetic 39 | . . 13 26 Thermal 46 | . 8 38 . Explosive 18 | . . . 18 Electromagnetic 30 | . 8 22 . Robot Hit Streak 13 | . 4 10 13 Robot Miss Streak 6 | . 2 5 6 Penetration Max . | . . . . Secondary Targets . | . . . . Shots Hit Robots 110 | . 7 73 30 Core Hits 75 | . 4 24 47 Critical Hits 1 | . . . 1 Critical Kills . | . . . . Critical Parts Destroyed 1 | . . . 1 Melee Attacks 33 | . . 32 1 Impact 33 | . . 32 1 Slashing . | . . . . Piercing . | . . . . Sneak Attacks 3 | . . 3 . Combat Hostiles . | . . . . Follow-up Attacks . | . . . . Damage Inflicted 3616 | . 103 1393 2120 Guns 619 | . 103 516 . Cannons 536 | . . 52 484 Explosions 1667 | . . 70 1597 Melee 794 | . . 755 39 Ramming . | . . . . Kinetic 558 | . . 74 484 Thermal 334 | . 12 322 . Explosive 1597 | . . . 1597 Electromagnetic 333 | . 91 242 . Impact 794 | . . 755 39 Slashing . | . . . . Piercing . | . . . . Highest Corruption . | . . . . Average Corruption . | . . . . Corruption Purged . | . . . . Overload Shots . | . . . . Overflow Damage 214 | . . 134 80 Projectiles 11 | . . . 11 Explosions 69 | . . . 69 Melee 134 | . . 134 . Knockbacks 7 | . . 3 4 Impact . | . . . . Kinetic 7 | . . 3 4 Secondary . | . . . . Self-Inflicted Damage 136 | . . 61 75 Shots 4 | . . 2 2 Rammed . | . . . . Targets Rammed . | . . . . Kicked . | . . . . Crushed . | . . . . Highest Temperature 357 | . 148 236 357 Average Temperature 110 | . 63 102 139 Received Heat Transfer 660 | . 30 423 207 Effects 1 | . . . 1 Matter Decay 1 | . . . 1 Siege Activations . | . . . . Robots Corrupted . | . . . . Combat Hostiles . | . . . . Parts Fried 7 | . . 7 . Impact Corruptions 8 | . . 8 . Robots Melted . | . . . . Combat Hostiles . | . . . . Parts Melted 1 | . . 1 . Heat Transferred 827 | . 37 790 . Parts Sabotaged . | . . . . Parts Stolen . | . . . . Parts Stripped . | . . . . Power Chain Reactions 2 | . . 2 . Missiles Intercepted . | . . . . Alert | -11 -10 -9 -8 ------- Run | Scr Mat Mat Mat Peak Influence 719 | . 72 427 719 Average Influence 224 | . 45 259 354 Maximum Alert Level 3 | . . 2 3 Low Security (%) 44 | 100 100 31 18 Level 1 43 | . . 59 40 Level 2 11 | . . 9 37 Level 3 . | . . . 3 Level 4 . | . . . . Level 5 . | . . . . High Security . | . . . . Max Security . | . . . . Squads Dispatched 6 | . 1 3 2 Investigation . | . . . . Extermination . | . . . . Reinforcement 6 | . 1 3 2 Assault . | . . . . Garrison . | . . . . Intercept . | . . . . Construction Impeded . | . . . . Haulers Reinforced . | . . . . Stealth | -11 -10 -9 -8 --------- Run | Scr Mat Mat Mat Distress Signals 7 | . 3 3 1 Communications Jammed . | . . . . Distress Signals . | . . . . Times Spotted 78 | . 12 37 29 Peak Tracking Total 10 | . 4 10 8 Tactical Retreats 6 | . 1 1 4 Traps | -11 -10 -9 -8 ------- Run | Scr Mat Mat Mat Traps Triggered . | . . . . Indirectly . | . . . . Trap Hack Attempts . | . . . . Triggered . | . . . . Disarmed . | . . . . Reprogrammed . | . . . . Reused . | . . . . Traps Extracted . | . . . . Installed . | . . . . Triggered . | . . . . Machines | -11 -10 -9 -8 ---------- Run | Scr Mat Mat Mat Machines Disabled 1 | . . 1 . Max in Single Turn 1 | . . 1 . Machines Sabotaged . | . . . . Garrisons Compromised . | . . . . Overloaded Fab Kills . | . . . . Fab Network Shutdowns . | . . . . Hacking | -11 -10 -9 -8 --------- Run | Scr Mat Mat Mat Machines Accessed 3 | . 1 2 . Terminals 3 | . 1 2 . Fabricators . | . . . . Repair Stations . | . . . . Recycling Units . | . . . . Scanalyzers . | . . . . Garrison Access . | . . . . Total Hacks 7 | . 2 5 . Successful 5 | . 1 4 . Failed 2 | . 1 1 . Catastrophic 1 | . 1 . . Database Lockouts . | . . . . Manual 7 | . 2 5 . Terminals 7 | . 2 5 . Fabricators . | . . . . Repair Stations . | . . . . Recycling Units . | . . . . Scanalyzers . | . . . . Garrison Access . | . . . . Terminal Hacks 1 | . . 1 . Terminal Index 1 | . . 1 . Fabricator Hacks . | . . . . Repair Station Hacks . | . . . . Recycling Unit Hacks . | . . . . Scanalyzer . | . . . . Garrison Access Hacks . | . . . . Unauthorized Hacks 9 | . 2 7 . Terminals 4 | . 1 3 . Track 1 | . . 1 . Botnet 3 | . 1 2 . Fabricators . | . . . . Repair Stations . | . . . . Recycling Units . | . . . . Scanalyzers . | . . . . Garrison Access . | . . . . Data Cores Recovered . | . . . . Used . | . . . . Hacking Detections 3 | . 1 2 . Full Trace Events . | . . . . Feedback Events . | . . . . Feedback Blocked . | . . . . Robot Schematics Acquired . | . . . . Robots Built . | . . . . Matter . | . . . . Time . | . . . . Total Robot Build Rating . | . . . . Part Schematics Acquired . | . . . . Parts Built . | . . . . Matter . | . . . . Time . | . . . . Total Part Build Rating . | . . . . Parts Repaired . | . . . . Time . | . . . . Parts Recycled . | . . . . Recycled Matter . | . . . . Retrieved Matter . | . . . . Retrieved Components . | . . . . Parts Scanalyzed . | . . . . Part Schematics Acquired . | . . . . Parts Damaged . | . . . . Bothacking | -11 -10 -9 -8 ------------ Run | Scr Mat Mat Mat Used RIF Installer . | . . . . Robots Hacked . | . . . . Non-combat . | . . . . Combat . | . . . . Robot Hacks Applied . | . . . . Relay Couplers Released . | . . . . Robots Rewired . | . . . . Allies Hacked . | . . . . Hacks Repelled . | . . . . Allies | -11 -10 -9 -8 -------- Run | Scr Mat Mat Mat Total Allies . | . . . . Largest Group . | . . . . Highest-Rated Group . | . . . . Highest-Rated Ally . | . . . . Total Orders . | . . . . Ally Attacks . | . . . . Total Damage . | . . . . Kills . | . . . . Allies Corrupted . | . . . . Allies Melted . | . . . . Intel | -11 -10 -9 -8 ------- Run | Scr Mat Mat Mat Robot Analysis Total . | . . . . Derelict Logs Recovered . | . . . . Drone Launches . | . . . . Drone Recoveries . | . . . . Exploration | -11 -10 -9 -8 ------------- Run | Scr Mat Mat Mat Turns Passed 1199 | 45 223 742 189 Spaces Moved 1062 | 38 224 614 186 Core 5 | 5 . . . Treads . | . . . . Legs 3 | . . . 3 Wheels 105 | 33 72 . . Hover 521 | . 152 369 . Flight 428 | . . 245 183 Fastest Speed 37 | 50 56 37 37 Average Speed 63 | 93 71 64 47 Slowest Speed 140 | 100 140 120 120 Overloaded Moves . | . . . . Propulsion Burnouts . | . . . . Robots Hopped 1 | . . . 1 Cave-ins Triggered . | . . . . Exploration Rate (%) 27 | 3 36 44 28 Regions Visited 3 Branch Regions . Pre-discovered Areas . | . . . . Known Exits Taken . | . . . . Unknown Exits Taken 3 | 1 1 1 . Scrap Searched . | . . . . Spaces Dug . | . . . . Terrain Destroyed 125 | . . 7 118 Melee . | . . . . Projectile 4 | . . . 4 AOE 121 | . . 7 114 Actions | -11 -10 -9 -8 --------- Run | Scr Mat Mat Mat Total 1397 | 45 270 842 240 Wait 85 | . 22 52 11 Move 1057 | 37 223 613 184 Hop 1 | . . . 1 Pick Up 15 | 2 3 8 2 Fast Attach 24 | 5 3 11 5 Attach 4 | . 1 2 1 Detach . | . . . . Swap 12 | . 2 6 4 Drop 29 | 1 4 19 5 Fire 85 | . 8 51 26 Melee 33 | . . 32 1 Ram . | . . . . Kick . | . . . . Crush . | . . . . Escape Stasis . | . . . . Rewire . | . . . . Trap . | . . . . Miscellaneous 52 | . 4 48 . Route ------- -11/Scrapyard -10/Materials -9/Materials (discovered 2 exits: [*Mat] / [*Min]) -8/Materials History --------- Turn | Location | Event 1 | -11/Scrapyard | Upgraded with Propulsion slot (x2) 1 | -11/Scrapyard | Upgraded with Weapon slot (x1) 12 | -11/Scrapyard | Discovered new exit (range 15) 46 | -11/Scrapyard | Entered Materials 215 | -10/Materials | Discovered new exit (range 3) 269 | -10/Materials | Entered another Materials area 271 | -9/Materials | Reached level 2 271 | -9/Materials | Upgraded with Utility slot (x1) 313 | -9/Materials | Build established: Mutant 670 | -9/Materials | Reached level 3 694 | -9/Materials | Core integrity fell below 50% 809 | -9/Materials | Discovered new exit (range 8) 1005 | -9/Materials | Discovered new exit (range 14) 1011 | -9/Materials | Entered another Materials area 1013 | -8/Materials | Reached level 4 1019 | -8/Materials | Upgraded with Power slot (x1) 1019 | -8/Materials | Upgraded with Utility slot (x1) 1125 | -8/Materials | Core integrity fell below 50% 1129 | -8/Materials | Reached level 5 1176 | -8/Materials | Destroyed 11 combat bots 1183 | -8/Materials | Core integrity fell below 20% 1200 | -8/Materials | Destroyed by S-10 Pest with Light Assault Rifle Last Messages --------------- 01162_ U-05 Engineer builds a Wall. 01163_ Overheating: Matter decay (-1). 01166_ The unstable cave ceiling collapses. 01167_ U-05 Engineer lays Concrete. 01173_ The unstable cave ceiling collapses. 01176_ Acquired 58 matter. 01177_ The unstable cave ceiling collapses. 01177_ Acquired 44 matter. 01179_ Acquired Carbon-fiber Leg. 01180_ The unstable cave ceiling collapses. 01182_ Acquired Aluminum Leg. 01184_ G-47 Trooper destroyed. 01186_ The unstable cave ceiling collapses. 01187_ S-10 Pest destroyed. 01187_ Destroyed Lgt. Ion Engine. 01187_ S-10 Pest destroyed. 01190_ Destroyed Particle Gun. 01194_ S-10 Pest destroyed. 01195_ U-05 Engineer lays Concrete. 01200_ K-01 Serf collects debris. Map ----- +----------------------------------------------------+ | ?????????????????????????????????????????????????? | | ?????????????????????????????????????????????????? | | ?????????????????????????????????????????????????? | | ?????????????????????????????????????????????????? | | ?????????????? ????????????????????????????????? | | ???????????? ??##????????????????????????????? | | ?????????? T# ???????????????????????????? | | ?????????? "# "???????????????????????????? | | ??????????? # """ ??????????????????????? | | ???????????[/= """ ???????????????????????? | | ???????????? = ????????????????????????? | | ????????????= ?????????????????????????? | | ???????????? !! ??????????????????????????? | | ????????????? !! ???????????????????????????? | | ????????????## % # ?????????????##?????????????? | | ???????????## %== ############## #?????????????? | | ???????????# =u%# ## #?????????????? | | ???????????# = ## !! #?????????????? | | ????????????# ?# !! ! #?????????????? | | ????????????# =% ## !! #?????????????? | | ????????##### = #????###??????? | | ????????# #????%%##?????? | | ????????# *] a ## ! ####### %#?????? | | ????????# kg ! ! %* %#?????? | | ????????# = s ! s = %#?????? | | ????????# @s%[ aa %#?????? | | ????????# %= = # u %%##?????? | | ????????# # # # ####??????? | | ????????# =[ ## ##### [[[ #?######### | | ????????# =! s% ####?##???# [[[ ### | | ????????# =! [% ???????????# [[[ | | ????????# =#????????????# ######### | | ????????# #????????????# #???????### ##### | | ????????####### +????????????# #?????????# #???? | | ??????????????# #????????????# ??????????# #???? | | ??????????????# #????????????# ??????????#+#???? | | ??????????????# ?????????????# ????????????????? | | ?????????????? ?????????????# ????????????????? | | ?????????????? ?????????????# ????????????????? | | ??????????????[ ?????????????? ????????????????? | | ??????????????? ?????????????? ????????????????? | | ???????????????????????????????? ????????????????? | | ?????????????????????????????????????????????????? | | ?????????????????????????????????????????????????? | | ?????????????????????????????????????????????????? | | ?????????????????????????????????????????????????? | | ?????????????????????????????????????????????????? | | ?????????????????????????????????????????????????? | | ?????????????????????????????????????????????????? | | ?????????????????????????????????????????????????? | +----------------------------------------------------+ Best States ------------- Heat Dissipation 25 Energy Generation 14 Energy Capacity 640 Matter Stores 300 Matter Capacity 300 Sight Range 18 Robot Scan Range 13 Terrain Scan Density 10 Resistance: KI 5 Resistance: TH 5 Propulsion Shielding 33 Evasion (%) 62 Targeting Accuracy 8 Item Schematics ----------------- None Robot Schematics ------------------ None Fabricated ------------ Nothing Alien Tech Used ----------------- None Achievements -------------- Oops Challenges ------------ None RPGLIKE | -11 -10 -9 -8 --------- Run | Scr Mat Mat Mat Levels Raised 4 | . . 2 2 XP Earned 10226 | 3000 285 3531 3410 XP Spent 7455 | 2550 . 3005 1900 Upgrades 27 | 6 . 15 6 Power Slot 1 | . . . 1 Propulsion Slot 2 | 2 . . . Utility Slot 2 | . . 1 1 Weapon Slot 1 | 1 . . . Core Integrity 8 | . . 8 . Energy Storage 2 | . . 2 . Mass Support 2 | . . . 2 Inventory Capacity 2 | 1 . 1 . Melee Accuracy 4 | 2 . 2 . KI Resistance % 1 | . . . 1 TH Resistance % 1 | . . . 1 KI Damage % 1 | . . 1 . Protomatter Created 456 | . 40 332 84 Integrity Restored 1036 | . 90 946 . Core 925 | . 90 835 . Parts 111 | . . 111 . Protomatter Decayed 33 | . 3 . 30 Game ------ Seed FlyingTacticalMachine Manual? 0 Play Time 00:27:26 Cumulative 33.5 hours Start 2020.01.01 @ 23:18:36 End 2020.01.01 @ 23:46:16 Sessions 1 Manual Loads 0 Difficulty Rogue Special Mode Winter2019/RPGLIKE Game No. 53 Rogue 53 Adventurer 0 Explorer 0 Win Type - Total 0 Types 0/0/0/0/0/0/0 Lore% 12 Gallery% 31 Achievement% 12 Wizard Run 0 Options --------- ASCII 0 Keyboard 0 Movement Mouse Keybinds 0 Fullscreen 1 Font 18/X11 Map View 76x50 Tactical HUD 1 Map Filters NONE Filters NONE Steam 1 RUN: d1d2efb7-0e43-460a-9e9a-3575b0059aee